[Event "Live Chess"]
[Site "Chess.com"]
[Date "2023.05.20"]
[Round "-"]
[White "Man-Del-Brot"]
[Black "Pandreq"]
[Result "1-0"]
[WhiteElo "1115"]
[BlackElo "1270"]
[TimeControl "300"]
[EndTime "13:27:24 PDT"]
[Termination "Man-Del-Brot won by checkmate"]

1. d4 {[%clk 0:04:48.9]} 1... d5 {[%clk 0:04:58.7]} 2. Nf3 {[%clk 0:04:46.1]}
2... c6 {[%clk 0:04:57.3]} 3. Bf4 {[%clk 0:04:44.3]} 3... Nf6 {[%clk 0:04:55.9]}
4. e3 {[%clk 0:04:43.2]} 4... Bf5 {[%clk 0:04:54.4]} 5. Bd3 {[%clk 0:04:40]}
5... Bxd3 {[%clk 0:04:51.9]} 6. Qxd3 {[%clk 0:04:38.8]} 6... Na6 {[%clk
0:04:49.3]} 7. a3 {[%clk 0:04:31.2]} 7... e6 {[%clk 0:04:45.9]} 8. b4 {[%clk
0:04:28.6]} 8... b6 {[%clk 0:04:36.7]} 9. O-O {[%clk 0:04:26.5]} 9... Bd6 {[%clk
0:04:29]} 10. Ne5 {[%clk 0:04:22]} 10... Bxe5 {[%clk 0:04:22.8]} 11. dxe5 {[%clk
0:04:19.7]} 11... Ne4 {[%clk 0:03:46.6]} 12. f3 {[%clk 0:04:05]} 12... Ng5
{[%clk 0:03:08]} 13. Bg3 {[%clk 0:04:00.3]} 13... Nc7 {[%clk 0:03:03.6]} 14. Bh4
{[%clk 0:03:55.1]} 14... f6 {[%clk 0:02:51.4]} 15. f4 {[%clk 0:03:48.7]} 15...
Ne4 {[%clk 0:02:47.2]} 16. exf6 {[%clk 0:03:37.7]} 16... Nxf6 {[%clk 0:02:40]}
17. Nc3 {[%clk 0:03:34.7]} 17... O-O {[%clk 0:02:37.1]} 18. Ne2 {[%clk
0:03:30.5]} 18... Nce8 {[%clk 0:02:31.3]} 19. Rf3 {[%clk 0:03:21.9]} 19... c5
{[%clk 0:02:24.6]} 20. bxc5 {[%clk 0:03:19.6]} 20... bxc5 {[%clk 0:02:23.5]} 21.
c3 {[%clk 0:03:02.2]} 21... c4 {[%clk 0:02:22.3]} 22. Qc2 {[%clk 0:02:57.4]}
22... Qb6 {[%clk 0:02:12.3]} 23. Nd4 {[%clk 0:02:55.5]} 23... Ne4 {[%clk
0:01:57.7]} 24. Rb1 {[%clk 0:02:51.3]} 24... Qd6 {[%clk 0:01:49.3]} 25. f5
{[%clk 0:02:34.1]} 25... N8f6 {[%clk 0:01:44.7]} 26. Nxe6 {[%clk 0:02:27.6]}
26... Rfe8 {[%clk 0:01:15.3]} 27. Nd4 {[%clk 0:02:24.5]} 27... Qxa3 {[%clk
0:01:10]} 28. Bxf6 {[%clk 0:01:53.1]} 28... Nxf6 {[%clk 0:01:06.8]} 29. Nb5
{[%clk 0:01:49.8]} 29... Qc5 {[%clk 0:00:55.4]} 30. Nd4 {[%clk 0:01:41.8]} 30...
Ne4 {[%clk 0:00:53.9]} 31. Rb5 {[%clk 0:01:38.8]} 31... Qa3 {[%clk 0:00:48.7]}
32. Rxd5 {[%clk 0:01:31.1]} 32... Nxc3 {[%clk 0:00:46]} 33. Ne6 {[%clk
0:01:03.2]} 33... Rab8 {[%clk 0:00:29.6]} 34. e4 {[%clk 0:00:58.6]} 34... Rb2
{[%clk 0:00:28]} 35. Qxc3 {[%clk 0:00:45.7]} 35... Qa1+ {[%clk 0:00:18.6]} 36.
Rf1 {[%clk 0:00:43.6]} 36... Qa2 {[%clk 0:00:11.9]} 37. Qxg7# {[%clk 0:00:41.3]}
1-0

[Event "Live Chess"]
[Site "Chess.com"]
[Date "2023.05.20"]
[Round "-"]
[White "VovaOvchar1990"]
[Black "ChessTWSS"]
[Result "0-1"]
[WhiteElo "1212"]
[BlackElo "1682"]
[TimeControl "300"]
[EndTime "13:27:39 PDT"]
[Termination "ChessTWSS won by checkmate"]

1. e4 {[%clk 0:04:57.8]} 1... c5 {[%clk 0:04:53.8]} 2. Bc4 {[%clk 0:04:56.4]}
2... Nc6 {[%clk 0:04:47.8]} 3. Qh5 {[%clk 0:04:55]} 3... e6 {[%clk 0:04:37.7]}
4. Nf3 {[%clk 0:04:50.4]} 4... g6 {[%clk 0:04:32.2]} 5. Qh3 {[%clk 0:04:48.2]}
5... Bg7 {[%clk 0:04:24.5]} 6. d3 {[%clk 0:04:46.3]} 6... d5 {[%clk 0:04:14.2]}
7. exd5 {[%clk 0:04:44.5]} 7... exd5 {[%clk 0:04:10.4]} 8. Qxh7 {[%clk 0:04:33]}
8... Rxh7 {[%clk 0:04:05.9]} 9. Bxd5 {[%clk 0:04:31.2]} 9... Qxd5 {[%clk
0:04:01.7]} 10. Ng5 {[%clk 0:04:26.2]} 10... Qxg2 {[%clk 0:03:46]} 11. Nxh7
{[%clk 0:04:18.8]} 11... Qxh1+ {[%clk 0:03:42]} 12. Ke2 {[%clk 0:04:18]} 12...
Nd4+ {[%clk 0:03:33.4]} 13. Ke3 {[%clk 0:04:14.1]} 13... Qe1+ {[%clk 0:03:28.3]}
14. Kf4 {[%clk 0:04:11.9]} 14... Qe5# {[%clk 0:03:22.1]} 0-1

[Event "Live Chess"]
[Site "Chess.com"]
[Date "2023.05.20"]
[Round "-"]
[White "ameetghasi100"]
[Black "Tilbs_12"]
[Result "1-0"]
[WhiteElo "2686"]
[BlackElo "1545"]
[TimeControl "300"]
[EndTime "13:27:45 PDT"]
[Termination "ameetghasi100 won by resignation"]

1. d4 {[%clk 0:04:59]} 1... d5 {[%clk 0:04:59]} 2. c4 {[%clk 0:04:57.5]} 2... c6
{[%clk 0:04:58.4]} 3. Nc3 {[%clk 0:04:57.2]} 3... Nf6 {[%clk 0:04:57.5]} 4. e3
{[%clk 0:04:56.6]} 4... Bf5 {[%clk 0:04:55.5]} 5. Nf3 {[%clk 0:04:56.5]} 5... e6
{[%clk 0:04:53.6]} 6. b3 {[%clk 0:04:54.3]} 6... Bb4 {[%clk 0:04:51.6]} 7. Bd2
{[%clk 0:04:53.7]} 7... O-O {[%clk 0:04:48.5]} 8. a3 {[%clk 0:04:52.3]} 8... Bd6
{[%clk 0:04:46.1]} 9. Be2 {[%clk 0:04:50.1]} 9... Nbd7 {[%clk 0:04:43.3]} 10. h3
{[%clk 0:04:49]} 10... Bg6 {[%clk 0:04:42.1]} 11. g4 {[%clk 0:04:47.5]} 11...
Ne4 {[%clk 0:04:39.8]} 12. h4 {[%clk 0:04:46.6]} 12... Nxc3 {[%clk 0:04:34.8]}
13. Bxc3 {[%clk 0:04:46.5]} 13... Be4 {[%clk 0:04:34]} 14. Rh3 {[%clk 0:04:44]}
14... Nf6 {[%clk 0:04:30.7]} 15. g5 {[%clk 0:04:40.4]} 15... Nd7 {[%clk
0:04:29]} 16. Bd3 {[%clk 0:04:36.2]} 16... f5 {[%clk 0:04:23.2]} 17. Qe2 {[%clk
0:04:08.3]} 17... Qe7 {[%clk 0:04:18.3]} 18. b4 {[%clk 0:04:04.9]} 18... a5
{[%clk 0:04:14.4]} 19. c5 {[%clk 0:04:02.9]} 19... Bc7 {[%clk 0:04:12.5]} 20. b5
{[%clk 0:04:01.4]} 20... cxb5 {[%clk 0:04:06.5]} 21. Bxb5 {[%clk 0:03:58.9]}
21... Nb8 {[%clk 0:04:00.3]} 22. Ne5 {[%clk 0:03:32.7]} 22... Bxe5 {[%clk
0:03:56.6]} 23. dxe5 {[%clk 0:03:32.6]} 23... Nc6 {[%clk 0:03:55.7]} 24. Bd4
{[%clk 0:03:29]} 24... Qc7 {[%clk 0:03:53.5]} 25. Bxc6 {[%clk 0:03:24.1]} 25...
bxc6 {[%clk 0:03:50.8]} 26. f3 {[%clk 0:03:23.4]} 26... Bxf3 {[%clk 0:03:42.7]}
27. Rxf3 {[%clk 0:03:23.3]} 27... Rfb8 {[%clk 0:03:39]} 28. Rf1 {[%clk 0:03:21]}
28... Rb3 {[%clk 0:03:33.1]} 29. Kf2 {[%clk 0:03:20.1]} 29... a4 {[%clk
0:03:30.4]} 30. Rfc1 {[%clk 0:03:19.1]} 30... Rab8 {[%clk 0:03:29.4]} 31. Rc2
{[%clk 0:03:16.7]} 31... Qa5 {[%clk 0:03:26]} 32. Qd2 {[%clk 0:03:14.3]} 32...
Qb5 {[%clk 0:03:20.7]} 33. Qe2 {[%clk 0:03:06.2]} 33... Qb7 {[%clk 0:03:11.4]}
34. Raa2 {[%clk 0:03:02.1]} 34... Qf7 {[%clk 0:03:08]} 35. Rc3 {[%clk
0:02:53.2]} 35... f4 {[%clk 0:03:05.6]} 36. e4 {[%clk 0:02:46.1]} 36... Qg6
{[%clk 0:02:37.1]} 37. exd5 {[%clk 0:02:33.8]} 37... exd5 {[%clk 0:02:35.8]} 38.
e6 {[%clk 0:02:29.2]} 38... Re8 {[%clk 0:02:26]} 39. e7 {[%clk 0:02:23.2]} 39...
Qf7 {[%clk 0:02:22]} 40. Rxb3 {[%clk 0:02:18.1]} 40... axb3 {[%clk 0:02:20.6]}
41. Rb2 {[%clk 0:02:17.5]} 41... Rxe7 {[%clk 0:02:19.7]} 42. Qg4 {[%clk
0:02:16.8]} 42... Qg6 {[%clk 0:01:53.1]} 43. Re2 {[%clk 0:02:00.1]} 43... Rxe2+
{[%clk 0:01:48.7]} 44. Qxe2 {[%clk 0:02:00]} 44... Qc2 {[%clk 0:01:46.6]} 45.
Qxc2 {[%clk 0:01:57.8]} 45... bxc2 {[%clk 0:01:44.9]} 46. Bb2 {[%clk 0:01:57.2]}
46... Kf7 {[%clk 0:01:43.5]} 47. Bc1 {[%clk 0:01:57.1]} 47... Ke6 {[%clk
0:01:42]} 48. Bxf4 {[%clk 0:01:47.2]} 48... d4 {[%clk 0:01:40.3]} 49. Ke2 {[%clk
0:01:45.3]} 49... Kd5 {[%clk 0:01:38.2]} 50. Kd3 {[%clk 0:01:43.6]} 50... Kxc5
{[%clk 0:01:35.5]} 51. Kxc2 {[%clk 0:01:42.3]} 51... Kc4 {[%clk 0:01:33.4]} 52.
Be5 {[%clk 0:01:41.5]} 52... d3+ {[%clk 0:01:32.4]} 53. Kd2 {[%clk 0:01:40]}
53... g6 {[%clk 0:01:27.2]} 54. Bc3 {[%clk 0:01:37.5]} 54... c5 {[%clk
0:01:19.2]} 55. a4 {[%clk 0:01:36]} 55... Kb3 {[%clk 0:01:16.2]} 56. a5 {[%clk
0:01:34.9]} 1-0

[Event "Live Chess"]
[Site "Chess.com"]
[Date "2023.05.20"]
[Round "-"]
[White "smoggyrabbit"]
[Black "rideuv21"]
[Result "1-0"]
[WhiteElo "1680"]
[BlackElo "1813"]
[TimeControl "300"]
[EndTime "13:27:46 PDT"]
[Termination "smoggyrabbit won by resignation"]

1. d4 {[%clk 0:04:59.5]} 1... c5 {[%clk 0:04:59.5]} 2. d5 {[%clk 0:04:56.8]}
2... Nf6 {[%clk 0:04:58.1]} 3. Nc3 {[%clk 0:04:54.9]} 3... g6 {[%clk 0:04:56.8]}
4. e4 {[%clk 0:04:53.9]} 4... d6 {[%clk 0:04:56.2]} 5. Bc4 {[%clk 0:04:52.6]}
5... Bg7 {[%clk 0:04:55]} 6. Nf3 {[%clk 0:04:51.6]} 6... O-O {[%clk 0:04:53.8]}
7. O-O {[%clk 0:04:50.6]} 7... Bg4 {[%clk 0:04:51.8]} 8. h3 {[%clk 0:04:44.5]}
8... Bxf3 {[%clk 0:04:51]} 9. Qxf3 {[%clk 0:04:43.7]} 9... Nbd7 {[%clk
0:04:50.9]} 10. Qe2 {[%clk 0:04:26.7]} 10... Ne5 {[%clk 0:04:43.6]} 11. f4
{[%clk 0:04:02.5]} 11... Nxc4 {[%clk 0:04:39.9]} 12. Qxc4 {[%clk 0:04:02.4]}
12... Rb8 {[%clk 0:04:38.8]} 13. a4 {[%clk 0:03:58.2]} 13... Nd7 {[%clk
0:04:37.7]} 14. a5 {[%clk 0:03:53.9]} 14... b6 {[%clk 0:04:36.1]} 15. axb6
{[%clk 0:03:49.8]} 15... axb6 {[%clk 0:04:36]} 16. Bd2 {[%clk 0:03:47.5]} 16...
b5 {[%clk 0:04:27.7]} 17. Nxb5 {[%clk 0:03:45.3]} 17... Bxb2 {[%clk 0:04:27.3]}
18. Ra2 {[%clk 0:03:41.8]} 18... Nb6 {[%clk 0:04:18.4]} 19. Qe2 {[%clk
0:03:35.8]} 19... Bg7 {[%clk 0:04:09]} 20. Nc3 {[%clk 0:03:06.8]} 20... Ra8
{[%clk 0:03:57]} 21. Rfa1 {[%clk 0:03:01]} 21... Qd7 {[%clk 0:03:49.7]} 22. Rxa8
{[%clk 0:02:53.3]} 22... Rxa8 {[%clk 0:03:49.6]} 23. Rxa8+ {[%clk 0:02:51.9]}
23... Nxa8 {[%clk 0:03:49.5]} 24. Qa6 {[%clk 0:02:49.8]} 24... Nc7 {[%clk
0:03:48.1]} 25. Qb7 {[%clk 0:02:42.3]} 25... Qd8 {[%clk 0:03:23.2]} 26. Ne2
{[%clk 0:02:10.1]} 26... e6 {[%clk 0:03:16]} 27. Ba5 {[%clk 0:02:06.6]} 27...
exd5 {[%clk 0:03:05.2]} 28. Bxc7 {[%clk 0:01:54.3]} 28... Qd7 {[%clk 0:03:03.7]}
29. e5 {[%clk 0:01:25.4]} 29... dxe5 {[%clk 0:02:57.9]} 30. fxe5 {[%clk
0:01:21.8]} 30... Bxe5 {[%clk 0:02:49]} 31. Qb8+ {[%clk 0:01:19.3]} 1-0

[Event "Live Chess"]
[Site "Chess.com"]
[Date "2023.05.20"]
[Round "-"]
[White "Bot_Boy"]
[Black "JormaIbo"]
[Result "0-1"]
[WhiteElo "324"]
[BlackElo "446"]
[TimeControl "300"]
[EndTime "13:28:05 PDT"]
[Termination "JormaIbo won on time"]

1. e4 {[%clk 0:04:55.4]} 1... e5 {[%clk 0:04:58.6]} 2. Nf3 {[%clk 0:04:54.6]}
2... Nc6 {[%clk 0:04:57.4]} 3. Bc4 {[%clk 0:04:53.3]} 3... Bc5 {[%clk
0:04:56.4]} 4. Nc3 {[%clk 0:04:49.5]} 4... Nf6 {[%clk 0:04:50.8]} 5. O-O {[%clk
0:04:48]} 5... O-O {[%clk 0:04:49.1]} 6. d3 {[%clk 0:04:43.5]} 6... d6 {[%clk
0:04:34.9]} 7. Bg5 {[%clk 0:04:38.8]} 7... Nd4 {[%clk 0:04:20.6]} 8. Nxd4 {[%clk
0:04:13.8]} 8... Bxd4 {[%clk 0:04:13.7]} 9. Bxf6 {[%clk 0:03:53.7]} 9... Qxf6
{[%clk 0:04:11.1]} 10. Qf3 {[%clk 0:03:46.3]} 10... Qxf3 {[%clk 0:04:05.4]} 11.
gxf3 {[%clk 0:03:45]} 11... Bh3 {[%clk 0:03:52.5]} 12. Rfe1 {[%clk 0:03:17.9]}
12... Rfe8 {[%clk 0:03:38.2]} 13. Nd1 {[%clk 0:03:09]} 13... c6 {[%clk
0:03:33.7]} 14. c3 {[%clk 0:02:55.7]} 14... Bc5 {[%clk 0:03:26.4]} 15. b4 {[%clk
0:02:48.5]} 15... Bb6 {[%clk 0:03:16.6]} 16. Ne3 {[%clk 0:02:29.1]} 16... a5
{[%clk 0:02:36.6]} 17. b5 {[%clk 0:02:13.7]} 17... a4 {[%clk 0:02:33.4]} 18.
bxc6 {[%clk 0:02:07.3]} 18... bxc6 {[%clk 0:02:31.1]} 19. Rab1 {[%clk
0:01:30.9]} 19... Ba5 {[%clk 0:02:23.6]} 20. Nd1 {[%clk 0:01:22]} 20... d5
{[%clk 0:02:13.4]} 21. exd5 {[%clk 0:01:13.9]} 21... cxd5 {[%clk 0:02:12.8]} 22.
Bxd5 {[%clk 0:01:07]} 22... Red8 {[%clk 0:02:09.1]} 23. Bxa8 {[%clk 0:00:56.5]}
23... Rxa8 {[%clk 0:01:58.6]} 24. Rxe5 {[%clk 0:00:45.6]} 24... f6 {[%clk
0:01:56.9]} 25. Rc5 {[%clk 0:00:21.9]} 25... Be6 {[%clk 0:01:23]} 26. c4 {[%clk
0:00:17.6]} 26... Bd2 {[%clk 0:01:04.3]} 27. Rcb5 {[%clk 0:00:11.2]} 27... Bf4
{[%clk 0:00:57.5]} 28. Rb6 {[%clk 0:00:07.1]} 28... Bd7 {[%clk 0:00:43.8]} 0-1

[Event "Live Chess"]
[Site "Chess.com"]
[Date "2023.05.20"]
[Round "-"]
[White "fretle"]
[Black "McSlash1"]
[Result "0-1"]
[WhiteElo "1856"]
[BlackElo "2049"]
[TimeControl "300"]
[EndTime "13:28:09 PDT"]
[Termination "McSlash1 won on time"]

1. f4 {[%clk 0:04:58.2]} 1... d5 {[%clk 0:04:59.1]} 2. Nf3 {[%clk 0:04:56.9]}
2... Nf6 {[%clk 0:04:58.7]} 3. e3 {[%clk 0:04:55.7]} 3... c5 {[%clk 0:04:58.2]}
4. b3 {[%clk 0:04:54.3]} 4... Nc6 {[%clk 0:04:57.6]} 5. Bb5 {[%clk 0:04:52.9]}
5... e6 {[%clk 0:04:55.4]} 6. Bxc6+ {[%clk 0:04:51.3]} 6... bxc6 {[%clk
0:04:54.4]} 7. Bb2 {[%clk 0:04:50.7]} 7... Be7 {[%clk 0:04:53.6]} 8. d3 {[%clk
0:04:49.6]} 8... Ng4 {[%clk 0:04:51.6]} 9. Qe2 {[%clk 0:04:47.2]} 9... Qb6
{[%clk 0:04:49.4]} 10. Bxg7 {[%clk 0:04:42.9]} 10... Rg8 {[%clk 0:04:48.5]} 11.
Bb2 {[%clk 0:04:37.5]} 11... d4 {[%clk 0:04:48]} 12. exd4 {[%clk 0:04:34.4]}
12... cxd4 {[%clk 0:04:47.9]} 13. Bxd4 {[%clk 0:04:30.3]} 13... Qa5+ {[%clk
0:04:44.6]} 14. Nbd2 {[%clk 0:04:24.9]} 14... Bc5 {[%clk 0:04:30.3]} 15. h3
{[%clk 0:04:16.3]} 15... Nh6 {[%clk 0:04:20.3]} 16. Bxc5 {[%clk 0:04:04.5]}
16... Qxc5 {[%clk 0:04:20.2]} 17. Ne4 {[%clk 0:03:59.6]} 17... Qa5+ {[%clk
0:04:05.5]} 18. b4 {[%clk 0:03:54.6]} 18... Qxb4+ {[%clk 0:04:01.9]} 19. c3
{[%clk 0:03:54]} 19... Qb6 {[%clk 0:03:55.7]} 20. Nf6+ {[%clk 0:03:52]} 20...
Kf8 {[%clk 0:03:53]} 21. Nxg8 {[%clk 0:03:51]} 21... Kxg8 {[%clk 0:03:52.9]} 22.
Nd4 {[%clk 0:03:29.1]} 22... Ba6 {[%clk 0:03:48.4]} 23. O-O {[%clk 0:03:19.9]}
23... c5 {[%clk 0:03:47.6]} 24. Nf3 {[%clk 0:02:55.7]} 24... c4+ {[%clk
0:03:40.8]} 25. Kh1 {[%clk 0:02:55.1]} 25... Nf5 {[%clk 0:03:39.6]} 26. Kh2
{[%clk 0:02:33.7]} 26... cxd3 {[%clk 0:03:38.8]} 27. Qf2 {[%clk 0:02:18]} 27...
Qc7 {[%clk 0:03:35.5]} 28. Ne5 {[%clk 0:02:05]} 28... Qxc3 {[%clk 0:03:24.7]}
29. Qf3 {[%clk 0:01:53.3]} 29... Qd4 {[%clk 0:03:09.6]} 30. Qxa8+ {[%clk
0:01:51]} 30... Kg7 {[%clk 0:03:07.3]} 31. Rad1 {[%clk 0:01:24.6]} 31... d2
{[%clk 0:03:05]} 32. Rf3 {[%clk 0:01:14.6]} 32... Be2 {[%clk 0:03:01.5]} 33. Qb7
{[%clk 0:00:52.5]} 33... Nd6 {[%clk 0:02:40.5]} 34. Rg3+ {[%clk 0:00:48.1]}
34... Kf6 {[%clk 0:02:32.6]} 35. Nd7+ {[%clk 0:00:35]} 35... Ke7 {[%clk
0:02:31.7]} 36. Qb3 {[%clk 0:00:23.6]} 36... Bxd1 {[%clk 0:02:25.9]} 37. Qxd1
{[%clk 0:00:22.2]} 37... Kxd7 {[%clk 0:02:25.3]} 38. Rg7 {[%clk 0:00:14.1]}
38... Qxf4+ {[%clk 0:02:22.9]} 39. Kh1 {[%clk 0:00:11.6]} 39... Ne4 {[%clk
0:02:20.5]} 40. Qa4+ {[%clk 0:00:08.5]} 40... Ke7 {[%clk 0:02:18.6]} 41. Qb4+
{[%clk 0:00:06.8]} 41... Kf6 {[%clk 0:02:17.1]} 42. Rg4 {[%clk 0:00:02.9]} 42...
Qf1+ {[%clk 0:02:13.6]} 43. Kh2 {[%clk 0:00:01.2]} 43... d1=Q {[%clk 0:02:07.1]}
0-1

[Event "Live Chess"]
[Site "Chess.com"]
[Date "2023.05.20"]
[Round "-"]
[White "toog"]
[Black "Conradical12"]
[Result "1-0"]
[WhiteElo "2616"]
[BlackElo "1580"]
[TimeControl "300"]
[EndTime "13:28:09 PDT"]
[Termination "toog won by resignation"]

1. e4 {[%clk 0:04:59.2]} 1... e5 {[%clk 0:04:56.7]} 2. Nf3 {[%clk 0:04:57.9]}
2... Nc6 {[%clk 0:04:54.7]} 3. Bc4 {[%clk 0:04:56.4]} 3... Nf6 {[%clk
0:04:53.3]} 4. Ng5 {[%clk 0:04:53.6]} 4... d5 {[%clk 0:04:52]} 5. exd5 {[%clk
0:04:52.8]} 5... Na5 {[%clk 0:04:51.1]} 6. Bb5+ {[%clk 0:04:51.7]} 6... c6
{[%clk 0:04:50.7]} 7. dxc6 {[%clk 0:04:51.2]} 7... bxc6 {[%clk 0:04:50.4]} 8.
Bd3 {[%clk 0:04:50.6]} 8... h6 {[%clk 0:04:48.7]} 9. Ne4 {[%clk 0:04:49]} 9...
Nxe4 {[%clk 0:04:46.8]} 10. Bxe4 {[%clk 0:04:48.9]} 10... Qd4 {[%clk 0:04:45.4]}
11. d3 {[%clk 0:04:42.4]} 11... Bc5 {[%clk 0:04:36.4]} 12. O-O {[%clk
0:04:40.7]} 12... O-O {[%clk 0:04:34.2]} 13. Be3 {[%clk 0:04:38.9]} 13... Qxb2
{[%clk 0:04:30]} 14. Bxc5 {[%clk 0:04:37.7]} 14... Qxa1 {[%clk 0:04:28.5]} 15.
Qd2 {[%clk 0:03:57.2]} 15... Rd8 {[%clk 0:04:21.3]} 16. Qxa5 {[%clk 0:03:52]}
16... Bd7 {[%clk 0:04:10.7]} 17. Qa3 {[%clk 0:03:36.3]} 17... Rab8 {[%clk
0:04:03.6]} 18. Nd2 {[%clk 0:03:29.4]} 18... Qb2 {[%clk 0:03:59.6]} 19. Nc4
{[%clk 0:03:27.2]} 19... Qxa3 {[%clk 0:03:57.6]} 20. Bxa3 {[%clk 0:03:27.1]}
20... g5 {[%clk 0:03:53.8]} 21. Nxe5 {[%clk 0:03:24.8]} 21... f5 {[%clk
0:03:49.6]} 22. Bxc6 {[%clk 0:03:22.9]} 22... Rbc8 {[%clk 0:03:42.6]} 23. Bxd7
{[%clk 0:03:21.7]} 23... Rc5 {[%clk 0:03:39.6]} 1-0

[Event "Live Chess"]
[Site "Chess.com"]
[Date "2023.05.20"]
[Round "-"]
[White "lightningorderyt"]
[Black "JohanKjeldahl"]
[Result "0-1"]
[WhiteElo "522"]
[BlackElo "1844"]
[TimeControl "300"]
[EndTime "13:28:18 PDT"]
[Termination "JohanKjeldahl won by resignation"]

1. e4 {[%clk 0:04:56.9]} 1... c5 {[%clk 0:04:58]} 2. Nf3 {[%clk 0:04:56.8]} 2...
e6 {[%clk 0:04:56.7]} 3. Nc3 {[%clk 0:04:55.7]} 3... Nc6 {[%clk 0:04:54.9]} 4.
b3 {[%clk 0:04:52.7]} 4... a6 {[%clk 0:04:50.6]} 5. Ba3 {[%clk 0:04:51.7]} 5...
Qc7 {[%clk 0:04:47.5]} 6. Bb5 {[%clk 0:04:34.2]} 6... axb5 {[%clk 0:04:44.5]} 7.
Nxb5 {[%clk 0:04:32.6]} 7... Qb6 {[%clk 0:04:42.5]} 8. Nd6+ {[%clk 0:04:29.6]}
8... Bxd6 {[%clk 0:04:40.3]} 9. O-O {[%clk 0:04:15.1]} 9... Rxa3 {[%clk
0:04:37.1]} 10. Re1 {[%clk 0:04:09.7]} 10... Nd4 {[%clk 0:04:30]} 11. e5 {[%clk
0:03:59.8]} 11... Be7 {[%clk 0:04:28.4]} 12. c3 {[%clk 0:03:42]} 12... Nxf3+
{[%clk 0:04:24.9]} 13. gxf3 {[%clk 0:03:34.7]} 13... Qc6 {[%clk 0:04:23.4]} 14.
Rb1 {[%clk 0:03:22]} 14... b5 {[%clk 0:04:21.6]} 15. b4 {[%clk 0:03:04.5]} 15...
cxb4 {[%clk 0:04:17.2]} 16. cxb4 {[%clk 0:03:03.2]} 16... Rxf3 {[%clk
0:04:14.6]} 17. Re3 {[%clk 0:02:58.6]} 17... Bb7 {[%clk 0:04:10.1]} 18. Rxf3
{[%clk 0:02:55.3]} 18... Qxf3 {[%clk 0:04:08.8]} 19. Qxf3 {[%clk 0:02:52.7]}
19... Bxf3 {[%clk 0:04:07.4]} 20. Rc1 {[%clk 0:02:46.6]} 20... Bc6 {[%clk
0:04:02.1]} 21. d4 {[%clk 0:02:40.5]} 21... f6 {[%clk 0:04:00.4]} 22. exf6
{[%clk 0:02:34.8]} 22... Nxf6 {[%clk 0:03:59.3]} 23. f4 {[%clk 0:02:21.3]} 23...
Nd5 {[%clk 0:03:58]} 24. a4 {[%clk 0:02:05.8]} 24... O-O {[%clk 0:03:52.8]} 25.
axb5 {[%clk 0:02:03.5]} 25... Bxb5 {[%clk 0:03:50.8]} 26. f5 {[%clk 0:01:50.3]}
26... Rxf5 {[%clk 0:03:49.1]} 0-1